bitfinex/quotes_BTCUSD_20241120
["timestamp","ask_amount","ask_price","bid_price","bid_amount"]
[1732098122087,0.05206451,93366.0,93359.0,0.096402]
[1732098122333,0.05206451,93366.0,93360.0,0.0964]
[1732098122585,0.10906255,93367.0,93360.0,0.0964]
[1732098122586,0.02002481,93365.0,93360.0,0.0964]
[1732098122796,0.02002481,93364.0,93359.0,0.096402]
[1732098123017,0.02002481,93363.0,93361.0,0.096399]
[1732098123244,0.02002481,93362.0,93361.0,0.096399]
[1732098123982,0.02002481,93362.0,93357.0,0.0017108]
[1732098124192,0.02216716,93361.0,93359.0,0.096401]
[1732098124416,0.02002481,93360.0,93359.0,0.096402]
[1732098124642,0.02002481,93360.0,93357.0,0.0017108]
[1732098124643,0.02002481,93360.0,93357.0,0.0981138]
[1732098124858,0.02216716,93359.0,93358.0,0.096402]
[1732098125074,0.02216716,93359.0,93357.0,0.0017108]
[1732098125285,0.00214235,93359.0,93357.0,0.0017108]
[1732098125510,0.10906255,93365.0,93357.0,0.0017108]
[1732098125511,0.00214235,93364.0,93357.0,0.0981138]
[1732098125726,0.1112049,93364.0,93357.0,0.0981138]
[1732098125996,0.02002974,93363.0,93359.0,0.096401]
[1732098126211,0.02217209,93362.0,93357.0,0.0981138]
[1732098126430,0.02002974,93361.0,93357.0,0.0017108]
[1732098126658,0.107114,93359.0,93357.0,0.0017108]
[1732098126889,0.23834959,93358.0,93357.0,0.0017108]
[1732098127103,0.12714469,93358.0,93357.0,0.0017108]
[1732098127314,0.12928704,93358.0,93357.0,0.0017108]
[1732098127534,0.16133801,93358.0,93357.0,0.0017108]
[1732098127782,0.25303815,93358.0,93357.0,0.0017108]
[1732098127994,0.2508958,93358.0,93357.0,0.0017108]
[1732098128441,0.27426842,93358.0,93357.0,0.0017108]
[1732098132973,0.26082729,93358.0,93357.0,0.0017108]
[1732098133407,0.26082515,93358.0,93357.0,0.0017108]
[1732098133624,0.16912515,93358.0,93357.0,0.0017108]
[1732098133842,0.1712675,93358.0,93357.0,0.0017108]
[1732098134056,0.0641535,93358.0,93357.0,0.0017108]
[1732098134278,0.1712675,93358.0,93357.0,0.0017108]
[1732098134507,0.0641535,93358.0,93357.0,0.0017108]
[1732098134732,0.03000429,93358.0,93357.0,0.0981148]
[1732098134912,0.03000429,93358.0,93357.0,0.0017108]
[1732098135133,0.06415135,93358.0,93357.0,0.0017108]
[1732098135563,0.03214664,93358.0,93357.0,0.0017108]
[1732098136220,0.064152,93358.0,93357.0,0.0017108]
[1732098136429,0.171266,93358.0,93357.0,0.0017108]
[1732098136641,0.064152,93358.0,93357.0,0.0017108]
[1732098136859,0.171266,93358.0,93357.0,0.0017108]
[1732098137509,0.161266,93358.0,93357.0,0.0017108]
[1732098137719,0.171266,93358.0,93357.0,0.0017108]
[1732098140379,0.064152,93358.0,93357.0,0.0017108]
[1732098140589,0.171266,93358.0,93357.0,0.0017108]
[1732098141682,0.260766,93358.0,93357.0,0.0017108]
[1732098141910,0.30392365,93358.0,93357.0,0.0017108]
[1732098142130,0.31729682,93358.0,93357.0,0.0017108]
[1732098142584,0.31929682,93358.0,93357.0,0.0017108]
[1732098143914,0.31729682,93358.0,93357.0,0.0017108]
[1732098145242,0.31929682,93358.0,93357.0,0.0017108]
[1732098145457,0.31729682,93358.0,93357.0,0.0017108]
[1732098146508,0.31815232,93358.0,93357.0,0.0017108]
[1732098146895,0.2527695,93358.0,93357.0,0.0017108]
[1732098147116,0.31814427,93358.0,93357.0,0.0017108]
[1732098147793,0.32014427,93358.0,93357.0,0.0017108]
[1732098149063,0.31814427,93358.0,93357.0,0.0017108]
[1732098149310,0.42525939,93358.0,93357.0,0.0017108]
[1732098150416,0.35988462,93358.0,93357.0,0.0017108]
[1732098150621,0.36188462,93358.0,93357.0,0.0017108]
[1732098150861,0.42726531,93358.0,93357.0,0.0017108]
[1732098152020,0.42726596,93358.0,93357.0,0.0017108]
[1732098152506,0.39326371,93358.0,93357.0,0.0017108]
[1732098152749,0.42527113,93358.0,93357.0,0.0017108]
[1732098154685,0.42727113,93358.0,93357.0,0.0017108]
[1732098156978,0.42527113,93358.0,93357.0,0.0017108]
[1732098157208,0.42727113,93358.0,93357.0,0.0017108]
[1732098157614,0.4273152,93358.0,93357.0,0.0017108]
[1732098158506,0.4253152,93358.0,93357.0,0.0017108]
[1732098158924,0.4273152,93358.0,93357.0,0.0017108]
[1732098160488,0.42731266,93358.0,93357.0,0.0017108]
[1732098161541,0.36188462,93358.0,93357.0,0.0017108]
[1732098161744,0.42731078,93358.0,93357.0,0.0017108]
[1732098161958,0.42531078,93358.0,93357.0,0.0017108]
[1732098163968,0.34581078,93358.0,93357.0,0.0017108]
[1732098164471,0.18339678,93358.0,93357.0,0.0017108]
[1732098164694,0.29265313,93358.0,93357.0,0.0017108]
[1732098164899,0.29051078,93358.0,93357.0,0.0017108]
[1732098165101,0.29050924,93358.0,93357.0,0.0017108]
[1732098171873,0.30050924,93358.0,93357.0,0.0017108]
[1732098172088,0.30050924,93358.0,93350.0,0.001711]
[1732098172089,0.107122,93351.0,93350.0,0.001711]
[1732098172300,0.28180409,93351.0,93350.0,0.001711]
[1732098172518,0.27966174,93351.0,93350.0,0.001711]
[1732098174706,0.21423712,93351.0,93350.0,0.001711]
[1732098174925,0.28184027,93351.0,93350.0,0.001711]
[1732098175134,0.27969792,93351.0,93350.0,0.001711]
[1732098177718,0.32387412,93351.0,93350.0,0.001711]
[1732098178310,0.33387412,93351.0,93350.0,0.001711]
[1732098179228,0.33387451,93351.0,93350.0,0.001711]
[1732098179446,0.31384066,93351.0,93350.0,0.001711]
[1732098179655,0.33387377,93351.0,93350.0,0.001711]
[1732098181675,0.33387342,93351.0,93350.0,0.001711]
[1732098182350,0.28969722,93351.0,93350.0,0.001711]
[1732098182590,0.17257522,93351.0,93350.0,0.001711]
[1732098182807,0.17257522,93351.0,93350.0,0.080111]
[1732098182808,0.06759894,93351.0,93350.0,0.080111]
[1732098183021,0.17257859,93351.0,93350.0,0.080111]
[1732098183239,0.06545659,93351.0,93350.0,0.080111]
[1732098185484,0.17257859,93351.0,93350.0,0.080111]
[1732098185690,0.06545659,93351.0,93350.0,0.080111]
[1732098186316,0.17257859,93351.0,93350.0,0.080111]
[1732098186524,0.17257859,93351.0,93350.0,0.001711]
[1732098186737,0.28969371,93351.0,93350.0,0.001711]
[1732098186941,0.18257171,93351.0,93344.0,0.00069389]
[1732098187152,0.107129,93345.0,93344.0,0.00069389]
[1732098187361,0.28184306,93345.0,93344.0,0.00069389]
[1732098187581,0.27970071,93345.0,93344.0,0.00069389]
[1732098187792,0.21424412,93345.0,93344.0,0.00069389]
[1732098188015,0.28184671,93345.0,93344.0,0.00069389]
[1732098188228,0.27970436,93345.0,93344.0,0.00069389]
[1732098188893,0.28970436,93345.0,93344.0,0.00069389]
[1732098189093,0.37953343,93345.0,93344.0,0.00069389]
[1732098189312,0.38953343,93345.0,93344.0,0.00069389]
[1732098190635,0.46913343,93345.0,93344.0,0.00069389]
[1732098191285,0.469128,93345.0,93344.0,0.00069389]
[1732098192196,0.43571764,93345.0,93344.0,0.00069389]
[1732098192433,0.50116544,93345.0,93344.0,0.00069389]
[1732098194148,0.56125814,93345.0,93344.0,0.00069389]
[1732098195365,0.55125814,93345.0,93344.0,0.00069389]
[1732098196426,0.47165814,93345.0,93344.0,0.00069389]
[1732098198016,0.43961369,93345.0,93344.0,0.00069389]
[1732098198851,0.37416589,93345.0,93344.0,0.00069389]
[1732098199074,0.43959438,93345.0,93344.0,0.00069389]
[1732098200619,0.39259438,93345.0,93344.0,0.00069389]
[1732098202066,0.107141,93335.0,93331.0,0.080209]
[1732098202293,0.00214235,93334.0,93331.0,0.080209]
[1732098202542,0.06757084,93334.0,93331.0,0.080209]
[1732098202767,0.107144,93332.0,93331.0,0.080209]
[1732098202950,0.10928635,93332.0,93331.0,0.080209]
[1732098203159,0.17472467,93332.0,93331.0,0.080209]
[1732098203365,0.06758067,93332.0,93331.0,0.080209]
[1732098203569,0.06543832,93332.0,93331.0,0.080209]
[1732098203814,0.06543832,93332.0,93331.0,0.176639]
[1732098204669,0.17258232,93332.0,93331.0,0.080209]
[1732098204878,0.17472467,93332.0,93331.0,0.001709]
[1732098205532,0.28183979,93332.0,93331.0,0.001709]
[1732098205735,0.27969744,93332.0,93331.0,0.001709]
[1732098205943,0.21425912,93332.0,93331.0,0.001709]
[1732098206157,0.28183816,93332.0,93331.0,0.001709]
[1732098206372,0.27969581,93332.0,93331.0,0.001709]
[1732098209402,0.21425912,93332.0,93331.0,0.001709]
[1732098209611,0.28184178,93332.0,93331.0,0.001709]
[1732098209818,0.23428383,93332.0,93331.0,0.001709]
[1732098210035,0.32412875,93332.0,93331.0,0.001709]
[1732098210261,0.17255496,93332.0,93331.0,0.108854]
[1732098210467,0.17255496,93332.0,93331.0,0.001709]
[1732098211096,0.17255496,93332.0,93323.0,0.0455]
[1732098211097,0.20459505,93332.0,93323.0,0.0455]
[1732098211318,0.17469731,93331.0,93330.0,0.107146]
[1732098211556,0.17469731,93331.0,93324.0,0.107153]
[1732098211557,0.17255496,93331.0,93324.0,0.107153]
[1732098211791,0.06543984,93330.0,93326.0,0.10715]
[1732098212007,0.10711512,93331.0,93326.0,0.10715]
[1732098212008,0.17255496,93329.0,93326.0,0.10715]
[1732098212214,0.06543984,93328.0,93327.0,0.107149]
[1732098212416,0.06543984,93328.0,93326.0,0.10715]
[1732098212628,0.10711512,93329.0,93326.0,0.10715]
[1732098212629,0.06543984,93327.0,93326.0,0.10715]
[1732098212857,0.06544244,93327.0,93326.0,0.10715]
[1732098213288,0.06544244,93327.0,93326.0,0.27713295]
[1732098213504,0.05206684,93327.0,93326.0,0.39424807]
[1732098213722,0.02002571,93327.0,93326.0,0.58576778]
[1732098213943,0.02002571,93327.0,93326.0,0.39624807]
[1732098214157,0.0008556,93357.0,93354.0,0.096407]
[1732098214158,0.03204113,93355.0,93354.0,0.096407]
[1732098214389,0.0008556,93357.0,93356.0,0.096405]
[1732098214599,0.04625546,93357.0,93356.0,0.096405]
[1732098214815,0.04625546,93357.0,93356.0,0.17867474]
[1732098215242,0.03288418,93357.0,93356.0,0.17867474]
[1732098215930,0.04625513,93357.0,93356.0,0.17867474]
[1732098216351,0.04623849,93357.0,93356.0,0.17867474]
[1732098216563,0.03286754,93357.0,93356.0,0.17867474]
[1732098216784,0.03286754,93357.0,93356.0,0.096405]
[1732098219949,0.03281942,93357.0,93356.0,0.096405]
[1732098220167,0.03281942,93357.0,93354.0,0.10115802]
[1732098220378,0.107117,93355.0,93354.0,0.00475102]
[1732098220596,0.25956778,93355.0,93354.0,0.00475102]
[1732098222654,0.29152989,93355.0,93354.0,0.00475102]
[1732098222849,0.29152979,93355.0,93354.0,0.00475102]
[1732098223208,0.25956771,93355.0,93354.0,0.00475102]
[1732098223420,0.21423212,93355.0,93354.0,0.00475102]
[1732098223625,0.26171101,93355.0,93354.0,0.00475102]
[1732098223937,0.25956866,93355.0,93354.0,0.00475102]
[1732098226177,0.27954552,93355.0,93354.0,0.00475102]
[1732098226828,0.17242852,93355.0,93354.0,0.00475102]
[1732098227012,0.28254301,93355.0,93354.0,0.00475102]
[1732098227222,0.2804019,93355.0,93354.0,0.00475102]
[1732098227780,0.06616978,93355.0,93354.0,0.10115802]
[1732098228681,0.09812959,93355.0,93354.0,0.10115802]
[1732098229341,0.06616978,93355.0,93354.0,0.10115802]
[1732098235190,0.0008558,93355.0,93354.0,0.10115802]
[1732098235418,0.06615546,93355.0,93354.0,0.10115802]
[1732098244776,0.06615546,93355.0,93354.0,0.18343399]
[1732098245422,0.0008558,93355.0,93354.0,0.18343399]
[1732098245634,0.06626082,93355.0,93354.0,0.18343399]
[1732098247003,0.06626082,93355.0,93354.0,0.10115802]
[1732098247216,0.06626082,93355.0,93354.0,0.18343399]
[1732098249355,0.0008558,93355.0,93354.0,0.18343399]
[1732098249564,0.05288602,93355.0,93354.0,0.18557608]
[1732098249770,0.05288602,93355.0,93354.0,0.18343399]
[1732098252765,0.06625625,93355.0,93354.0,0.18343399]
[1732098253180,0.03202679,93375.0,93354.0,0.08702699]
[1732098253398,0.0008551,93393.0,93369.0,0.09639]
[1732098253399,0.10711512,93374.0,93369.0,0.09639]
[1732098253661,0.10711512,93375.0,93361.0,0.08227597]
[1732098253882,0.10711512,93375.0,93372.0,0.096388]
[1732098254525,0.10711512,93375.0,93369.0,0.09639]
[1732098254526,0.10711512,93375.0,93370.0,0.1071]
[1732098255191,0.10711512,93375.0,93370.0,0.2142]
[1732098255410,0.10711512,93375.0,93370.0,0.1071]
[1732098256300,0.18671512,93375.0,93370.0,0.1071]
[1732098256748,0.18671512,93375.0,93355.0,0.08227597]
[1732098256749,0.18671512,93375.0,93372.0,0.107097]
[1732098257418,0.0008552,93379.0,93378.0,0.107091]
[1732098257637,0.0008552,93379.0,93378.0,0.18936697]
[1732098258287,0.0008552,93379.0,93378.0,0.31936697]
[1732098258699,0.0008552,93379.0,93378.0,0.36018073]
[1732098260724,0.0008552,93379.0,93378.0,0.237091]
[1732098266843,0.0008552,93379.0,93378.0,0.188991]
[1732098267053,0.0008552,93379.0,93378.0,0.10923235]
[1732098267264,0.0008552,93379.0,93378.0,0.20923235]
[1732098267490,0.0008552,93379.0,93378.0,0.32634747]
[1732098267707,0.0008552,93379.0,93378.0,0.37360612]
[1732098267930,0.0008552,93379.0,93378.0,0.37560612]
[1732098268148,0.0008552,93379.0,93378.0,0.45220612]
[1732098268379,0.0008552,93379.0,93378.0,0.57529585]
[1732098268598,0.0008552,93379.0,93378.0,0.45220612]
[1732098270209,0.0008552,93379.0,93378.0,0.45020612]
[1732098271072,0.0008552,93379.0,93378.0,0.45220612]
[1732098271303,0.0008552,93379.0,93378.0,0.45020612]
[1732098272410,0.0008552,93379.0,93378.0,0.21294502]
[1732098272632,0.0008552,93379.0,93378.0,0.32217729]
[1732098272851,0.0008552,93379.0,93378.0,0.32003602]
[1732098275739,0.0008552,93379.0,93378.0,0.44312575]
[1732098276614,0.02079655,93379.0,93378.0,0.44312575]
[1732098278240,0.02079655,93379.0,93378.0,0.30678073]
[1732098278702,0.02079655,93379.0,93378.0,0.183691]
[1732098278949,0.05271772,93379.0,93378.0,0.107091]
[1732098282510,0.06608491,93379.0,93378.0,0.107091]
[1732098282750,0.04617992,93379.0,93378.0,0.107091]
[1732098283009,0.06615337,93379.0,93378.0,0.107091]
[1732098283254,0.03281199,93379.0,93378.0,0.10923262]
[1732098283487,0.05278498,93379.0,93378.0,0.10923255]
[1732098283715,0.05278498,93379.0,93378.0,0.11094335]
[1732098283716,0.05279912,93379.0,93378.0,0.11094335]
[1732098283948,0.06616592,93379.0,93378.0,0.11094335]
[1732098284170,0.05279912,93379.0,93378.0,0.11094335]
[1732098284806,0.06616586,93379.0,93378.0,0.11094335]
[1732098285102,0.05279912,93379.0,93378.0,0.1088018]
[1732098285333,0.06616586,93379.0,93378.0,0.1088018]
[1732098285556,0.05279912,93379.0,93378.0,0.1088018]
[1732098285765,0.06616588,93379.0,93378.0,0.1088018]
[1732098285932,0.05279912,93379.0,93378.0,0.1088018]
[1732098286431,0.05141621,93379.0,93378.0,0.1088018]
[1732098287191,0.06478266,93379.0,93378.0,0.1088018]
[1732098287669,0.05141621,93379.0,93378.0,0.1088018]
[1732098287863,0.06478283,93379.0,93378.0,0.1088018]
[1732098289851,0.045,93382.0,93378.0,0.2158928]
[1732098290057,0.02001602,93379.0,93378.0,0.2158928]
[1732098290329,0.03338288,93379.0,93378.0,0.2158928]
[1732098294617,0.06540046,93379.0,93378.0,0.1088018]
[1732098294846,0.03338042,93379.0,93378.0,0.1088018]
[1732098295519,0.03423582,93379.0,93378.0,0.1088018]
[1732098296188,0.09827068,93379.0,93378.0,0.1088018]
[1732098296411,0.06625064,93379.0,93378.0,0.1088018]
[1732098296849,0.066243,93379.0,93378.0,0.1088018]
[1732098300315,0.0008554,93379.0,93378.0,0.1088018]
[1732098300642,0.0008554,93379.0,93378.0,0.11094328]
[1732098300643,0.06624304,93379.0,93378.0,0.11094328]
[1732098300846,0.06624304,93379.0,93378.0,0.1088018]
[1732098301052,0.06624304,93379.0,93378.0,0.15182434]
[1732098301675,0.06624304,93379.0,93378.0,0.1088018]
[1732098301676,0.05287532,93379.0,93378.0,0.1088018]
[1732098301926,0.06624195,93379.0,93378.0,0.1088018]
[1732098303372,0.06624195,93379.0,93378.0,0.25204494]
[1732098303800,0.06624195,93379.0,93378.0,0.1088018]
[1732098304257,0.06624195,93379.0,93378.0,0.25418654]
[1732098304488,0.06624195,93379.0,93378.0,0.25204494]
[1732098304725,0.06624195,93379.0,93378.0,0.25699778]
[1732098305181,0.06624195,93379.0,93378.0,0.30098253]
[1732098305418,0.06624195,93379.0,93378.0,0.15773939]
[1732098305641,0.06624195,93379.0,93378.0,0.30320791]
[1732098305880,0.06624195,93379.0,93378.0,0.30106646]
[1732098307591,0.06624195,93379.0,93378.0,0.11375464]
[1732098308026,0.0008554,93379.0,93378.0,0.11375464]
[1732098308293,0.03424827,93379.0,93378.0,0.11375464]
[1732098308515,0.06629011,93379.0,93378.0,0.11375464]
[1732098309857,0.0008554,93379.0,93378.0,0.11375464]
[1732098310087,0.06629908,93379.0,93378.0,0.11375464]
[1732098310304,0.0008554,93379.0,93378.0,0.11375464]
[1732098310526,0.06629918,93379.0,93378.0,0.11375464]
[1732098312935,0.06630157,93379.0,93378.0,0.11375464]
[1732098314640,0.06630157,93379.0,93378.0,0.10304564]
[1732098315722,0.06630157,93379.0,93378.0,0.00666364]
[1732098315996,0.06630157,93379.0,93378.0,0.10304564]
[1732098320426,0.04627152,93379.0,93378.0,0.00666364]
[1732098320645,0.06630142,93379.0,93378.0,0.00666364]
[1732098322235,0.06630142,93379.0,93378.0,0.10304564]
[1732098326860,0.06630142,93379.0,93378.0,0.00666364]
[1732098327069,0.06630142,93379.0,93378.0,0.10304564]
[1732098327753,0.06630142,93379.0,93378.0,0.00666364]
[1732098328169,0.17339142,93379.0,93378.0,0.00666364]
[1732098328599,0.17339142,93379.0,93378.0,0.30703537]
[1732098328600,0.06630142,93379.0,93378.0,0.30703537]
[1732098328849,0.06630142,93379.0,93378.0,0.26615685]
[1732098329278,0.05293315,93379.0,93378.0,0.26615685]
[1732098329494,0.06629901,93379.0,93378.0,0.26615685]
[1732098329708,0.05293315,93379.0,93378.0,0.26615685]
[1732098329921,0.05293315,93379.0,93378.0,0.38327197]
[1732098330580,0.0008554,93379.0,93378.0,0.38327197]
[1732098330799,0.0008554,93379.0,93378.0,0.46741259]
[1732098330800,0.05288759,93379.0,93378.0,0.46741259]
[1732098331034,0.06489512,93379.0,93378.0,0.46741259]
[1732098331370,0.05288775,93379.0,93378.0,0.46741259]
[1732098340828,0.05288775,93379.0,93378.0,0.70644539]
[1732098341064,0.05288775,93379.0,93378.0,0.46741259]
[1732098341265,0.05288775,93379.0,93378.0,0.70644585]
[1732098341480,0.05288775,93379.0,93378.0,0.46741259]
[1732098341705,0.0008554,93379.0,93378.0,0.70644363]
[1732098341933,0.05284537,93379.0,93378.0,0.80644363]
[1732098342371,0.05284537,93379.0,93378.0,0.56741259]
[1732098342584,0.05284537,93379.0,93378.0,0.80637044]
[1732098343017,0.05284537,93379.0,93378.0,0.72547044]
[1732098343497,0.05284537,93379.0,93378.0,0.72546214]
[1732098344191,0.05284537,93379.0,93378.0,0.48651259]
[1732098344858,0.05284432,93379.0,93378.0,0.48651259]
[1732098348192,0.0008554,93379.0,93378.0,0.48651259]
[1732098348420,0.05284742,93379.0,93378.0,0.48651259]
[1732098348637,0.02085233,93379.0,93378.0,0.56961259]
[1732098348840,0.0008554,93379.0,93378.0,0.56961259]
[1732098350703,0.02085172,93379.0,93378.0,0.56961259]
[1732098350911,0.02085172,93379.0,93378.0,0.55961259]
[1732098351136,0.02085271,93379.0,93378.0,0.56961259]
[1732098351552,0.02085271,93379.0,93378.0,0.79844968]
[1732098351763,0.02085271,93379.0,93378.0,0.55961259]
[1732098351978,0.02085271,93379.0,93378.0,0.45249747]
[1732098352192,0.02085271,93379.0,93378.0,0.36939747]
[1732098352626,0.02085271,93379.0,93378.0,0.51966828]
[1732098352824,0.02085271,93379.0,93378.0,0.51968336]
[1732098353029,0.05285857,93379.0,93378.0,0.51968336]
[1732098353236,0.05285857,93379.0,93378.0,0.32854658]
[1732098353645,0.05285857,93379.0,93378.0,0.51968336]
[1732098353860,0.05285857,93379.0,93378.0,0.32854658]
[1732098354301,0.05285857,93379.0,93378.0,0.51968336]
[1732098355157,0.05285857,93379.0,93378.0,0.32854658]
[1732098355496,0.05285857,93379.0,93378.0,0.51968336]
[1732098356516,0.05285857,93379.0,93378.0,0.32854658]
[1732098356768,0.19422481,93379.0,93378.0,0.10304564]
[1732098356985,0.19422481,93379.0,93378.0,0.00666364]
[1732098357237,0.30131481,93379.0,93378.0,0.00666364]
[1732098357461,0.19422481,93379.0,93378.0,0.00666364]
[1732098357899,0.19422481,93379.0,93378.0,0.10304564]
[1732098358113,0.19422481,93379.0,93378.0,0.00666364]
[1732098358355,0.30131481,93379.0,93378.0,0.00666364]
[1732098360709,0.19422481,93379.0,93378.0,0.00666364]
[1732098360928,0.30131481,93379.0,93378.0,0.00666364]
[1732098364515,0.2359454,93379.0,93378.0,0.00666364]
[1732098364736,0.30131055,93379.0,93378.0,0.00666364]
[1732098367850,0.19422055,93379.0,93378.0,0.00666364]
[1732098368058,0.06622055,93379.0,93378.0,0.10304564]
[1732098368290,0.06620022,93379.0,93378.0,0.10304564]
[1732098372503,0.0661996,93379.0,93378.0,0.10304564]
[1732098374963,0.01847004,93394.0,93391.0,0.096368]
[1732098375184,0.12558516,93394.0,93392.0,0.096367]
[1732098375431,0.12558516,93394.0,93391.0,0.096368]
[1732098376106,0.12558516,93394.0,93388.0,0.096371]
[1732098376553,0.12558516,93394.0,93386.0,0.096374]
[1732098377062,0.12558516,93394.0,93387.0,0.096372]
[1732098377223,0.12558516,93394.0,93389.0,0.09637]
[1732098377484,0.12558516,93394.0,93393.0,0.096366]
[1732098377702,0.0827,93396.0,93395.0,0.096364]
[1732098377911,0.05047,93399.0,93378.0,0.05346364]
[1732098378123,0.05047,93399.0,93398.0,0.096361]
[1732098378791,0.05047,93399.0,93392.0,0.0736061]
[1732098379020,0.05047,93399.0,93398.0,0.096361]
[1732098381517,0.05047,93399.0,93397.0,0.096362]
[1732098381736,0.0479,93398.0,93396.0,0.096362]
[1732098381949,0.0479,93398.0,93397.0,0.096362]
[1732098382214,0.05047,93399.0,93398.0,0.096361]
[1732098383078,0.06383531,93399.0,93398.0,0.096361]
[1732098385075,0.09582191,93399.0,93398.0,0.096361]
[1732098385684,0.09582191,93399.0,93387.0,0.096372]
[1732098385997,0.04535191,93398.0,93395.0,0.096364]
[1732098386262,0.05047,93399.0,93397.0,0.096362]
[1732098386500,0.05047,93399.0,93398.0,0.096361]
[1732098386914,0.09667815,93399.0,93398.0,0.096361]
[1732098387125,0.11666957,93399.0,93398.0,0.096361]
[1732098388373,0.11666957,93399.0,93398.0,0.21347612]
[1732098388589,0.1033032,93399.0,93398.0,0.096361]
[1732098390051,0.10328489,93399.0,93398.0,0.096361]
[1732098391151,0.11664898,93399.0,93398.0,0.096361]
[1732098393685,0.08466579,93399.0,93398.0,0.096361]
[1732098393934,0.11662763,93399.0,93398.0,0.096361]
[1732098396668,0.24582763,93399.0,93398.0,0.096361]
[1732098397511,0.27778947,93399.0,93398.0,0.096361]
[1732098397918,0.24582763,93399.0,93398.0,0.096361]
[1732098398577,0.24582763,93399.0,93392.0,0.001711]
[1732098398786,0.24582763,93399.0,93398.0,0.096361]
[1732098398787,0.0513255,93399.0,93398.0,0.096361]
[1732098399011,0.14861359,93399.0,93398.0,0.096361]
[1732098399215,0.11665175,93399.0,93398.0,0.096361]
[1732098403947,0.11666587,93399.0,93398.0,0.096361]
[1732098405704,0.11667869,93399.0,93398.0,0.096361]
[1732098411310,0.11672857,93399.0,93398.0,0.096361]
[1732098412957,0.0833494,93399.0,93398.0,0.096361]
[1732098413175,0.11673107,93399.0,93398.0,0.096361]
[1732098414213,0.1487565,93399.0,93398.0,0.096361]
[1732098414595,0.2281565,93399.0,93395.0,0.096364]
[1732098414832,0.2281565,93399.0,93393.0,0.096366]
[1732098414833,0.06540557,93398.0,93397.0,0.096362]
[1732098415603,0.06541377,93398.0,93397.0,0.096362]
[1732098416038,0.09744172,93398.0,93397.0,0.096362]
[1732098416257,0.06541377,93398.0,93397.0,0.096362]
[1732098416506,0.09744172,93398.0,93397.0,0.096362]
[1732098416711,0.06541377,93398.0,93397.0,0.096362]
[1732098416918,0.06541377,93398.0,93392.0,0.08394425]
[1732098416919,0.187172,93396.0,93392.0,0.001711]
[1732098417132,0.03203387,93394.0,93392.0,0.001711]
[1732098417341,0.17248777,93393.0,93392.0,0.001711]
[1732098417761,0.06541377,93393.0,93392.0,0.001711]
[1732098419906,0.17248777,93393.0,93392.0,0.001711]
[1732098420380,0.06541377,93393.0,93392.0,0.001711]
[1732098420598,0.17248777,93393.0,93392.0,0.001711]
[1732098421008,0.17249105,93393.0,93392.0,0.001711]
[1732098421218,0.06541705,93393.0,93392.0,0.001711]
[1732098422064,0.17249105,93393.0,93392.0,0.001711]
[1732098422461,0.06541705,93393.0,93392.0,0.001711]
[1732098423817,0.17249105,93393.0,93392.0,0.001711]
[1732098424888,0.06541705,93393.0,93392.0,0.001711]
[1732098425745,0.17249105,93393.0,93392.0,0.001711]
[1732098426383,0.17249105,93393.0,93392.0,0.00452171]
[1732098426620,0.17249105,93393.0,93392.0,0.00648143]
[1732098428591,0.17244095,93393.0,93392.0,0.00648143]
[1732098428812,0.107074,93393.0,93392.0,0.00648143]
[1732098429661,0.17244088,93393.0,93392.0,0.00648143]
[1732098430294,0.107075,93392.0,93386.0,0.096373]
[1732098430513,0.107075,93392.0,93386.0,0.192746]
[1732098430514,0.06536688,93391.0,93386.0,0.192746]
[1732098430724,0.06536688,93390.0,93379.0,0.096381]
[1732098430964,0.06536688,93389.0,93388.0,0.096371]
[1732098431177,0.06536688,93389.0,93386.0,0.192746]
[1732098431394,0.06536688,93388.0,93386.0,0.192746]
[1732098431637,0.06536688,93387.0,93384.0,0.096375]
[1732098431869,0.06536688,93386.0,93385.0,0.096375]
[1732098432093,0.06536096,93386.0,93384.0,0.096375]
[1732098432318,0.06536096,93385.0,93384.0,0.096375]
[1732098432789,0.05199423,93385.0,93384.0,0.096375]
[1732098433715,0.05199423,93385.0,93383.0,0.096376]
[1732098433936,0.107079,93389.0,93384.0,0.001711]
[1732098434166,0.17244277,93388.0,93384.0,0.001711]
[1732098434394,0.06536277,93387.0,93384.0,0.001711]
[1732098434615,0.06536277,93386.0,93384.0,0.001711]
[1732098434880,0.05199602,93385.0,93384.0,0.001711]
[1732098435558,0.05199602,93385.0,93384.0,0.098087]
[1732098435770,0.05199602,93385.0,93384.0,0.001711]
[1732098436623,0.17244592,93385.0,93384.0,0.001711]
[1732098436831,0.15907902,93385.0,93384.0,0.001711]
[1732098437039,0.29564599,93385.0,93384.0,0.001711]
[1732098437869,0.40276111,93385.0,93384.0,0.001711]
[1732098439474,0.40276111,93385.0,93384.0,0.001611]
[1732098441773,0.43475756,93385.0,93384.0,0.001611]
[1732098441995,0.4850235,93385.0,93384.0,0.001611]
[1732098442215,0.4950235,93385.0,93384.0,0.001611]
[1732098443073,0.41276111,93385.0,93384.0,0.001611]
[1732098446176,0.41279653,93385.0,93384.0,0.001611]
[1732098450329,0.27959653,93385.0,93384.0,0.001611]
[1732098455808,0.21419812,93385.0,93384.0,0.001611]
[1732098456022,0.27960373,93385.0,93384.0,0.001611]
[1732098457586,0.28131493,93385.0,93384.0,0.001611]
[1732098459568,0.49037732,93385.0,93384.0,0.001611]
[1732098460477,0.40811493,93385.0,93384.0,0.001611]
[1732098463552,0.107093,93376.0,93375.0,0.0008556]
[1732098463771,0.27961373,93376.0,93375.0,0.0008556]
[1732098466781,0.21420812,93376.0,93375.0,0.0008556]
[1732098467001,0.27966148,93376.0,93375.0,0.0008556]
[1732098470167,0.27966515,93376.0,93375.0,0.0008556]
[1732098472563,0.06545703,93376.0,93375.0,0.0972406]
[1732098473245,0.06545703,93376.0,93375.0,0.0008556]
[1732098473459,0.06545703,93376.0,93375.0,0.0972406]
[1732098474119,0.06545703,93376.0,93375.0,0.0008556]
[1732098474325,0.06545703,93376.0,93375.0,0.0972406]
[1732098476912,0.06545356,93376.0,93375.0,0.0972406]
[1732098482923,0.0133693,93374.0,93373.0,0.096387]
[1732098483162,0.06545872,93374.0,93373.0,0.096387]
[1732098483405,0.06545872,93374.0,93367.0,0.177693]
[1732098483614,0.06545872,93373.0,93367.0,0.0813]
[1732098483829,0.06545872,93372.0,93370.0,0.09639]
[1732098484121,0.06545872,93371.0,93368.0,0.096392]
[1732098484345,0.35333403,93377.0,93368.0,0.096392]
[1732098484346,0.03205503,93376.0,93370.0,0.09639]
[1732098484571,0.17256663,93375.0,93370.0,0.09639]
[1732098484784,0.107098,93373.0,93369.0,0.08568]
[1732098484999,0.06547163,93372.0,93370.0,0.08568]
[1732098485217,0.06547163,93371.0,93370.0,0.08568]
[1732098486100,0.107096,93374.0,93370.0,0.08568]
[1732098486285,0.03340988,93371.0,93370.0,0.08568]